bitfinex/quotes_ETHUSD_20250519
["timestamp","ask_amount","ask_price","bid_price","bid_amount"]
[1747666094027,8.397,2448.9,2448.0,0.786]
[1747666094028,4.08415204,2448.5,2448.0,4.8708901]
[1747666094332,4.08387869,2448.7,2448.2,4.0845432]
[1747666094539,4.08371066,2448.8,2448.3,4.08438453]
[1747666094835,8.397,2448.9,2448.3,4.08440251]
[1747666095136,8.397,2448.9,2448.3,4.08445938]
[1747666095511,8.397,2448.9,2448.4,4.08429995]
[1747666095832,8.399,2448.8,2448.4,4.0842086]
[1747666096015,8.399,2448.8,2448.3,4.08438405]
[1747666096215,8.0,2448.9,2448.4,4.0842342]
[1747666096420,8.399,2448.8,2448.5,4.08398071]
[1747666096620,8.399,2448.8,2448.1,0.55]
[1747666096621,8.399,2448.8,2448.6,4.08388321]
[1747666096827,8.399,2448.8,2448.5,4.08404263]
[1747666097140,8.399,2448.8,2448.5,4.08411157]
[1747666097705,13.2378349,2449.4,2448.9,4.08333666]
[1747666097941,8.399,2449.4,2448.9,0.55]
[1747666098114,8.399,2449.4,2449.0,4.0832993]
[1747666098447,8.399,2449.4,2449.2,4.08290651]
[1747666098599,0.30174488,2449.6,2448.9,0.55]
[1747666098801,17.623,2450.0,2448.9,0.55]
[1747666098802,4.08170708,2450.0,2449.5,4.08236669]
[1747666099023,8.0,2449.9,2449.1,0.55]
[1747666099223,8.0,2450.0,2449.3,4.08278608]
[1747666099428,8.4,2450.1,2449.7,4.08200461]
[1747666099636,4.08178039,2450.0,2449.5,4.08232717]
[1747666099826,8.4,2450.1,2449.4,4.08253023]
[1747666100041,8.4,2450.1,2449.2,0.55]
[1747666100042,12.48154835,2450.1,2449.6,4.08226693]
[1747666100247,8.4,2450.1,2449.6,4.08227235]
[1747666100417,8.0,2450.0,2449.6,4.08227235]
[1747666100734,4.0819727,2449.8,2449.4,4.08261674]
[1747666100939,4.08197512,2449.8,2449.3,4.08277128]
[1747666101252,4.08202704,2449.8,2449.3,4.08275645]
[1747666101654,4.08211613,2449.8,2449.3,4.08275645]
[1747666102154,12.08245365,2449.6,2449.1,4.08310392]
[1747666102304,18.389,2449.5,2449.0,0.8024]
[1747666102877,18.389,2449.5,2449.3,4.08273342]
[1747666103208,18.389,2449.5,2449.3,4.08271215]
[1747666103606,18.389,2449.5,2449.2,4.08287175]
[1747666103960,22.47155677,2449.5,2449.0,4.88561444]
[1747666104118,18.389,2449.5,2449.0,0.8024]
[1747666104322,18.389,2449.5,2449.4,4.08263248]
[1747666104522,9.99,2450.0,2449.9,4.08179925]
[1747666104703,9.1981,2450.1,2449.5,0.8252]
[1747666104704,26.789,2450.1,2449.5,0.8252]
[1747666104908,8.0,2450.0,2449.5,0.8252]
[1747666105141,12.08170563,2450.0,2449.3,4.08263305]
[1747666105318,8.399,2449.9,2449.5,4.08245743]
[1747666105536,12.48083675,2449.9,2449.5,4.08245743]
[1747666105703,4.08209046,2449.8,2449.2,1.3752]
[1747666106052,4.08209046,2449.8,2448.9,8.399]
[1747666106053,4.08238946,2449.6,2449.0,4.08318227]
[1747666106351,22.07218719,2449.7,2449.2,4.08283126]
[1747666106506,17.99,2449.7,2449.3,4.08276683]
[1747666106706,22.07215674,2449.7,2449.3,4.08276683]
[1747666106908,22.07215674,2449.7,2449.3,4.08272291]
[1747666106909,17.99,2449.7,2449.3,4.08272291]
[1747666107142,22.07214269,2449.7,2449.3,4.08272291]
[1747666107341,22.07213323,2449.7,2449.3,4.08272291]
[1747666107548,17.99,2449.7,2449.3,4.08277035]
[1747666107714,22.07215806,2449.7,2449.2,4.08286508]
[1747666107922,22.07221913,2449.7,2449.2,4.08284149]
[1747666108432,22.07220981,2449.7,2449.2,4.08296571]
[1747666108611,22.072229,2449.7,2449.2,4.08288402]
[1747666108948,4.08236345,2449.6,2449.0,4.08328339]
[1747666109112,4.08236345,2449.6,2449.1,4.08306446]
[1747666109310,4.08236345,2449.6,2449.2,4.08295215]
[1747666109511,4.08271921,2449.4,2448.9,0.8252]
[1747666109710,4.08271921,2449.4,2448.9,4.90854153]
[1747666109908,4.08272788,2449.4,2448.9,4.90854153]
[1747666110144,4.08255449,2449.5,2449.0,4.08315189]
[1747666110348,4.08255449,2449.5,2449.1,4.08312822]
[1747666110560,8.398,2449.4,2449.1,4.08312822]
[1747666111727,4.08333386,2449.0,2448.5,0.81683342]
[1747666111958,4.08422254,2448.5,2448.1,0.8088]
[1747666112136,9.99,2448.4,2448.0,4.25564578]
[1747666112337,9.99,2448.5,2448.4,4.08429995]
[1747666113262,9.99,2448.8,2448.7,4.08379956]
[1747666113469,18.388,2448.9,2448.5,4.08399894]
[1747666113668,18.388,2448.9,2448.5,5.0314482]
[1747666113832,18.388,2448.9,2448.8,4.08363279]
[1747666115763,18.388,2448.9,2448.6,4.08389688]
[1747666115978,18.388,2448.9,2448.7,4.08363637]
[1747666116278,18.388,2448.9,2448.8,4.08363279]
[1747666117166,9.99,2448.9,2448.8,4.08363279]
[1747666117467,9.99,2448.9,2448.4,0.7554]
[1747666117764,14.07354092,2448.9,2448.4,4.08426432]
[1747666117968,9.99,2448.9,2448.5,4.21168144]
[1747666118172,22.47339343,2449.0,2448.5,4.21168144]
[1747666118472,22.47330346,2449.0,2448.6,4.34214129]
[1747666118673,8.398,2448.9,2448.6,0.13063043]
[1747666118874,14.83372403,2448.8,2448.6,0.13063043]
[1747666119550,12.08379956,2448.7,2448.6,0.13063043]
[1747666119748,12.08379956,2448.7,2448.0,0.17068697]
[1747666119749,8.0,2448.6,2448.0,0.12784725]
[1747666119950,4.08480045,2448.1,2448.0,0.12784725]
[1747666120262,30.47280045,2448.1,2448.0,0.12784725]
[1747666120483,26.388,2448.1,2448.0,0.12784725]
[1747666120661,30.47280045,2448.1,2448.0,0.12784725]
[1747666121269,26.388,2448.1,2448.0,0.12784725]
[1747666121778,30.47280045,2448.1,2448.0,0.12784725]
[1747666122167,26.388,2448.1,2448.0,0.12784725]
[1747666122363,9.99,2448.1,2448.0,0.12784725]
[1747666122565,9.99,2448.1,2448.0,4.65117799]
[1747666122980,9.99,2448.1,2448.0,0.12784725]
[1747666123545,9.99,2448.1,2448.0,4.08496732]
[1747666124105,0.3087167,2448.8,2448.1,4.08475368]
[1747666124386,8.0,2448.6,2448.3,4.08435573]
[1747666124687,8.0,2448.6,2448.0,0.91399368]
[1747666124688,12.0840599,2448.6,2448.1,4.0846987]
[1747666124884,8.0,2448.6,2448.3,4.08446212]
[1747666125091,8.0,2448.6,2448.2,4.08453501]
[1747666125288,8.0,2448.6,2448.1,4.08475897]
[1747666125289,8.0,2448.6,2448.0,0.7864]
[1747666125490,8.399,2448.7,2448.3,4.08432395]
[1747666125694,8.399,2448.7,2448.4,4.08419363]
[1747666126192,8.399,2448.7,2448.4,4.08423296]
[1747666126395,8.08391743,2449.1,2448.6,4.08388945]
[1747666126556,8.399,2448.8,2448.6,4.08388945]
[1747666126755,12.48269865,2448.8,2448.3,4.08433763]
[1747666127088,8.399,2448.8,2448.4,4.21185518]
[1747666127295,8.399,2448.8,2448.5,4.08412426]
[1747666127495,12.78984781,2448.8,2448.1,0.48715135]
[1747666127797,12.78984781,2448.8,2448.3,4.08431895]
[1747666127992,4.08382591,2448.7,2448.3,4.08432753]
[1747666128182,4.08413314,2448.5,2448.4,0.12757669]
[1747666128381,16.08480587,2448.5,2448.4,0.12757669]
[1747666128584,8.0,2448.5,2448.2,0.13063886]
[1747666128789,0.8049,2448.6,2448.3,4.08437402]
[1747666128977,8.0,2448.7,2448.4,4.08424957]
[1747666129171,8.0,2448.7,2448.3,4.0843977]
[1747666129695,12.08381287,2448.7,2448.2,4.91438096]
[1747666129899,4.08415032,2448.5,2448.0,4.2126971]
[1747666130271,8.0,2448.7,2448.1,0.1275917]
[1747666130481,8.70620913,2448.8,2448.1,0.16843667]
[1747666130671,8.70620913,2448.8,2448.2,0.1275917]
[1747666130870,8.70620913,2448.8,2448.4,4.08418474]
[1747666131077,12.78984874,2448.8,2448.4,4.08418474]
[1747666131262,12.78988172,2448.8,2448.4,4.08418474]
[1747666131462,12.78987313,2448.8,2448.4,4.08418474]
[1747666131664,8.8049,2448.9,2448.5,4.08404926]
[1747666131876,8.398,2448.8,2448.3,4.08437475]
[1747666132165,8.398,2448.8,2448.3,4.08438466]
[1747666132468,8.398,2448.8,2448.4,0.12757924]
[1747666132675,4.08470819,2448.2,2447.9,0.12784725]
[1747666132882,8.398,2448.1,2447.9,4.2129258]
[1747666133088,8.398,2448.1,2448.0,4.21257201]
[1747666134004,8.397,2448.2,2448.0,0.12760469]
[1747666134200,8.399,2448.4,2448.2,4.08454002]
[1747666134405,8.397,2448.2,2447.9,4.08500754]
[1747666134703,8.397,2448.2,2448.0,4.08493547]
[1747666135008,8.398,2448.4,2448.3,4.08432394]
[1747666135301,8.398,2448.4,2448.3,4.08446677]
[1747666136743,8.398,2448.4,2448.2,4.08451107]
[1747666137708,8.398,2448.4,2448.1,4.08471671]
[1747666137870,18.388,2448.4,2448.2,0.12759019]
[1747666138075,18.388,2448.4,2448.3,4.08446677]
[1747666138712,18.388,2448.4,2448.3,4.21205696]
[1747666138918,18.388,2448.4,2448.3,0.12759019]
[1747666139222,22.47229995,2448.4,2447.9,4.08506855]
[1747666139415,18.388,2448.4,2448.0,49.35]
[1747666139640,4.08480045,2448.1,2448.0,49.35]
[1747666139939,0.76,2448.1,2448.0,49.35]
[1747666140085,0.76,2448.1,2448.0,49.47760813]
[1747666141711,8.4,2448.2,2448.0,49.47760813]
[1747666141907,8.4,2448.2,2448.0,54.3631202]
[1747666142210,8.397,2448.1,2448.0,54.23556131]
[1747666142414,8.397,2448.1,2448.0,49.35]
[1747666142817,31.24920045,2448.1,2448.0,49.48066514]
[1747666142996,31.24920045,2448.1,2448.0,46.48051612]
[1747666143326,31.24920045,2448.1,2448.0,42.54335778]
[1747666143525,31.70918958,2448.1,2448.0,42.54335778]
[1747666143726,31.24920045,2448.1,2448.0,42.54335778]
[1747666144256,31.24920045,2448.1,2448.0,42.41269264]
[1747666144404,39.64920045,2448.1,2448.0,42.41269264]
[1747666145423,10.7674,2448.1,2448.0,42.41269264]
[1747666145619,19.1644,2448.1,2448.0,42.41269264]
[1747666145790,31.24920045,2448.1,2448.0,42.41269264]
[1747666146127,18.7674,2448.1,2448.0,42.41269264]
[1747666146347,34.788,2448.1,2448.0,50.59585266]
[1747666146549,9.99,2448.1,2448.0,50.59585266]
[1747666146893,9.99,2448.1,2448.0,46.63848925]
[1747666147093,14.07480045,2448.1,2448.0,0.12760391]
[1747666147294,14.07480045,2448.1,2447.5,4.89686608]
[1747666147295,14.90136613,2448.1,2447.5,4.8969146]
[1747666147520,4.08512472,2448.0,2447.6,4.08562085]
[1747666147722,4.08512472,2448.0,2447.7,0.12761774]
[1747666147723,8.401,2448.0,2447.7,0.12761774]
[1747666148041,9.99,2448.1,2447.7,0.12761774]
[1747666148242,9.99,2448.1,2447.5,4.89696946]
[1747666148243,9.99,2448.1,2448.0,4.08496732]
[1747666149339,9.99,2448.1,2448.0,4.21256876]
[1747666149863,9.99,2448.2,2448.1,4.08480045]
[1747666150227,9.99,2448.2,2448.1,4.21240189]
[1747666150429,9.99,2448.2,2448.1,0.12760144]
[1747666151145,18.387,2448.2,2448.1,0.12760144]
[1747666151510,9.99,2448.2,2448.1,4.21240189]
[1747666151857,9.99,2448.2,2448.1,6.38582226]
[1747666154331,9.99,2448.6,2448.5,4.08413314]
[1747666154852,9.99,2448.7,2448.6,4.08396634]
[1747666155233,16.797,2448.9,2448.5,0.12756765]
[1747666155234,9.99,2448.8,2448.5,0.12756765]
[1747666155432,9.99,2448.8,2448.6,0.12756765]
[1747666155644,9.99,2448.8,2448.6,4.21146716]
[1747666155818,9.99,2448.8,2448.6,4.08389951]
[1747666156025,0.8088,2449.4,2448.6,0.42114672]
[1747666156354,0.8088,2449.4,2449.1,4.08305848]
[1747666156557,4.89150742,2449.4,2448.9,4.88190194]
[1747666156718,4.08313257,2449.1,2449.0,0.12756765]
[1747666157120,4.08338529,2449.0,2448.6,0.7986]
[1747666157318,4.08338529,2449.0,2448.3,0.7986]
[1747666157319,0.8088,2449.0,2448.3,0.7986]
[1747666157856,4.08320585,2449.1,2448.5,4.88271235]
[1747666158030,12.4780348,2449.2,2448.6,4.08396634]
[1747666158361,4.08379956,2448.7,2448.6,0.1275705]
[1747666158652,4.08379956,2448.7,2448.2,13.40699093]
[1747666158653,4.08379956,2448.7,2448.2,5.01099093]
[1747666158838,8.395,2448.8,2448.2,0.92644725]
[1747666158839,4.08398517,2448.6,2448.2,0.92644725]
[1747666159039,12.77742971,2448.8,2448.2,0.92644725]
[1747666159270,4.08394177,2448.7,2448.3,0.12758527]
[1747666159420,4.08394177,2448.7,2448.3,4.21203319]
[1747666159821,12.77745239,2448.8,2448.3,4.21203319]
[1747666160051,8.69372403,2448.8,2448.4,4.21183884]
[1747666160363,8.395,2448.8,2448.5,4.21164999]
[1747666160519,12.47871222,2448.8,2448.5,0.12758527]
[1747666160720,8.395,2448.8,2448.4,4.08420956]
[1747666161043,8.395,2448.8,2448.3,4.08440355]
[1747666161044,8.395,2448.8,2448.6,4.08392821]
[1747666161222,8.395,2448.8,2448.5,4.08405387]
[1747666161554,8.395,2448.8,2448.2,0.92644725]
[1747666161555,8.395,2448.8,2448.2,4.88313412]
[1747666161779,8.395,2448.8,2448.1,4.08478802]
[1747666161780,4.08407031,2448.6,2448.1,4.08478802]
[1747666161956,4.08407031,2448.6,2448.3,0.12758744]
[1747666162116,8.69433629,2448.8,2448.3,0.12758744]
[1747666162320,12.77710883,2448.8,2448.3,4.08438472]
[1747666162520,8.69333629,2448.8,2448.1,4.08480045]
[1747666162717,8.69333629,2448.8,2448.4,4.21185358]
[1747666162918,8.394,2448.8,2448.4,0.12758304]
[1747666163144,12.4777076,2448.8,2448.4,4.21187985]
[1747666163345,12.4777076,2448.8,2448.2,4.08457768]
[1747666163346,12.4777076,2448.8,2448.3,4.08438209]
[1747666163652,12.4777076,2448.8,2448.1,4.08465645]
[1747666163653,4.08414344,2448.5,2448.1,4.08465645]
[1747666163853,12.08480045,2448.1,2448.0,0.12784725]
[1747666164155,25.26297318,2448.1,2448.0,0.12784725]
[1747666165190,0.7656,2447.5,2447.1,4.08646503]
[1747666165346,8.394,2447.4,2446.9,0.8009]
[1747666165551,12.08552596,2447.7,2447.2,4.08620642]
[1747666165767,12.08552596,2447.7,2447.0,0.12764061]
[1747666165768,8.394,2447.6,2447.0,0.12764061]
[1747666166085,8.394,2447.6,2446.8,8.52284725]
[1747666166086,4.08630271,2447.2,2447.1,0.12764061]
[1747666166400,8.4,2447.3,2447.1,4.086366]
[1747666166682,8.4,2447.3,2447.0,4.08654084]
[1747666166862,8.4,2447.3,2446.9,4.85313498]
[1747666167063,8.4,2447.3,2447.0,4.08654295]
[1747666167259,8.4,2447.3,2446.9,4.85312326]
[1747666167449,8.4,2447.3,2446.9,4.85311797]
[1747666167650,8.4,2447.3,2447.1,4.08642357]
[1747666167844,8.7668,2447.7,2447.1,4.08639319]
[1747666168087,4.08640547,2447.2,2446.9,0.7664]
[1747666168283,8.0,2447.5,2446.6,13.26886712]
[1747666168486,4.08693306,2446.9,2446.6,0.7857]
[1747666168669,4.08704554,2446.8,2446.5,0.12784725]
[1747666168876,8.416,2446.9,2446.5,0.12784725]
[1747666169073,16.396,2447.1,2446.8,4.08697073]
[1747666169385,12.49800308,2447.4,2446.7,4.08703342]
[1747666169692,4.08663669,2447.0,2446.5,0.12784725]
[1747666169873,8.412,2447.4,2446.5,0.12784725]
[1747666170189,8.412,2447.4,2446.6,4.08722205]
[1747666170385,8.0,2447.1,2446.5,0.12784725]
[1747666170689,8.0,2447.1,2446.6,0.12766262]
[1747666170851,8.0,2447.1,2446.7,4.08712385]
[1747666171052,8.0,2447.1,2446.7,4.08713637]
[1747666171252,8.30785742,2447.1,2446.7,4.08713637]
[1747666172091,12.39433139,2447.1,2446.6,4.08722722]
[1747666172385,0.8199,2447.0,2446.5,4.08746393]
[1747666172588,8.42,2446.9,2446.5,4.08746393]
[1747666172886,8.42,2446.9,2446.4,4.08756628]
[1747666172887,12.50681419,2446.9,2446.4,4.08756628]
[1747666173195,0.8199,2447.3,2446.5,0.55]
[1747666173382,14.07482888,2448.1,2447.2,4.08621662]
[1747666173383,0.8199,2447.7,2447.2,4.08621662]
[1747666173552,0.8199,2447.7,2446.7,4.63711571]
[1747666173748,0.8199,2447.7,2447.1,4.0863592]
[1747666173749,4.08572134,2447.6,2447.1,4.0863592]
[1747666173952,12.08592009,2447.5,2447.0,4.08653002]
[1747666174193,8.30733662,2447.5,2446.8,4.08695186]
[1747666174360,4.39314852,2447.5,2446.8,1.38263519]
[1747666174554,4.08604323,2447.4,2446.9,4.08665177]
[1747666174760,12.0858802,2447.5,2447.0,4.0866336]
[1747666174955,8.0,2447.5,2447.1,4.08643975]
[1747666175287,16.446,2447.6,2447.1,0.40864398]
[1747666175453,8.446,2447.6,2447.3,4.08610414]
[1747666175897,8.446,2447.6,2447.4,4.08593874]
[1747666176285,8.446,2447.6,2447.3,4.08604267]
[1747666176465,8.446,2447.6,2447.2,4.08626494]
[1747666176674,4.08581724,2447.5,2447.0,4.0865398]
[1747666176885,4.08581724,2447.5,2447.1,4.08646701]
[1747666177085,12.53173079,2447.6,2447.1,4.08646701]
[1747666177303,12.53163843,2447.6,2447.2,4.08621686]
[1747666177605,8.446,2447.6,2447.2,4.08621686]
[1747666178400,4.00067273,2447.5,2446.4,0.48864663]
[1747666178593,9.2026,2447.4,2446.5,0.7535]
[1747666178973,4.08664884,2447.0,2446.5,4.84089129]
[1747666179172,4.08664884,2447.0,2446.5,0.7535]
[1747666179381,4.08712419,2446.8,2446.3,4.08776896]
[1747666179587,4.89047706,2446.9,2446.4,4.08760271]
[1747666179783,4.8904801,2446.9,2446.4,4.08763837]
[1747666180001,4.8904801,2446.9,2446.5,0.12652795]
[1747666180171,4.08698337,2446.8,2446.5,0.12652795]
[1747666180505,0.8036,2446.9,2446.5,0.12652795]
[1747666180506,4.00067273,2446.6,2446.5,0.12652795]
[1747666180684,16.51297756,2446.6,2446.5,0.12652795]
[1747666181197,12.51230483,2446.6,2446.5,0.12652795]
[1747666182175,13.31590483,2446.6,2446.5,0.12652795]
[1747666182600,9.2286,2446.6,2446.5,0.12652795]
[1747666182909,13.31590483,2446.6,2446.5,0.12652795]
[1747666183108,4.08759622,2446.5,2446.0,4.08823604]
[1747666183319,8.4,2446.4,2446.1,4.08801423]
[1747666183613,8.4,2446.4,2446.2,4.08793741]
[1747666183784,8.4,2446.4,2446.1,4.08804886]
[1747666184111,0.8036,2446.9,2446.2,0.55]
[1747666184288,26.069,2447.0,2446.3,0.7535]
[1747666184477,26.069,2447.0,2446.7,4.08700517]
[1747666185307,26.069,2447.0,2446.4,8.0]
[1747666185476,26.069,2447.0,2446.7,4.08708536]
[1747666185677,26.069,2447.0,2446.8,4.08695949]
[1747666185878,26.069,2447.0,2446.8,4.08688098]
[1747666186102,4.08599685,2447.4,2446.9,4.08680371]
[1747666186411,4.78887273,2447.5,2446.5,4.08744803]
[1747666186412,9.2072,2447.5,2447.0,4.08648284]
[1747666186577,9.2072,2447.5,2447.1,4.08639759]
[1747666186908,13.29300751,2447.5,2447.1,4.08639759]
[1747666187108,13.29300751,2447.5,2447.0,4.08654818]
[1747666187284,13.29300751,2447.5,2447.1,4.08646684]
[1747666187807,4.08608613,2447.4,2446.9,4.08679937]
[1747666187970,9.2072,2447.5,2446.8,4.08687742]
[1747666188176,13.20787273,2447.5,2446.7,8.0]
[1747666188410,4.08637035,2447.2,2446.7,8.0]
[1747666188612,4.08637035,2447.2,2446.7,12.08702084]
[1747666188781,4.08652326,2447.1,2446.7,8.0]
[1747666189011,4.08652326,2447.1,2446.5,12.08746131]
[1747666189215,4.87510643,2446.9,2446.4,1.70975]
[1747666189532,4.87510643,2446.9,2446.3,12.08773886]
[1747666189533,0.7882,2446.9,2446.3,4.08770823]
[1747666189730,4.08704816,2446.8,2446.3,12.08770823]
[1747666189932,4.87501076,2446.9,2446.3,12.08770823]
[1747666190222,0.7882,2446.9,2446.6,4.08721659]
[1747666190419,4.8750686,2446.9,2446.5,8.0]
[1747666190584,4.087167,2446.7,2446.3,4.08779598]
[1747666190919,4.087167,2446.7,2446.4,0.12768251]
[1747666191423,4.0870608,2446.8,2446.4,0.12768251]
[1747666191598,4.08709689,2446.8,2446.3,12.08780333]
[1747666191917,4.08716955,2446.7,2446.3,12.08780333]
[1747666192113,0.7882,2446.9,2446.2,0.12652795]
[1747666192316,0.7882,2446.9,2446.1,4.08803108]
[1747666192317,4.78887273,2446.9,2446.1,4.08803108]
[1747666192604,0.7882,2446.9,2446.3,4.08767151]
[1747666192974,4.87507183,2446.9,2446.4,4.08762284]
[1747666193181,0.7527,2447.1,2446.7,4.08698616]
[1747666193377,0.7527,2447.1,2446.7,4.08703995]
[1747666193576,0.7527,2447.1,2446.6,4.08723552]
[1747666193778,4.08663998,2447.0,2446.6,4.08723552]
[1747666194015,4.83925388,2447.1,2446.6,4.08723552]
[1747666194210,1.21268913,2447.1,2446.4,0.83029901]
[1747666194514,4.08679751,2447.0,2446.7,0.12767405]
[1747666194813,4.08683461,2446.9,2446.4,4.0875432]
[1747666195106,0.7527,2447.1,2446.5,4.21510637]
[1747666195312,4.08670585,2447.0,2446.5,4.21510637]
[1747666195508,4.08673443,2447.0,2446.5,0.12767766]
[1747666195714,4.8392334,2447.1,2446.6,0.12767766]
[1747666195913,8.429,2447.3,2446.6,0.59414416]
[1747666196114,16.83,2447.3,2446.9,4.08671103]
[1747666196316,16.83,2447.3,2447.0,4.0865914]
[1747666196516,16.83,2447.3,2447.1,0.12767766]
[1747666197084,16.83,2447.3,2446.9,4.08670777]
[1747666197285,8.429,2447.3,2446.9,0.89750081]
[1747666197522,0.8253,2447.8,2447.1,0.55]
[1747666197817,8.401,2448.1,2447.3,0.55]
[1747666198022,12.48585715,2448.1,2447.6,4.0855246]
[1747666198206,8.401,2448.1,2447.5,4.08580183]
[1747666198525,8.401,2448.1,2447.7,4.08545892]
[1747666198693,8.401,2448.1,2447.6,4.21323366]
[1747666198898,8.429,2448.4,2447.9,8.7772]
[1747666199223,8.401,2448.3,2447.6,0.7772]
[1747666199397,4.08510109,2448.0,2447.5,12.08575047]
[1747666199597,4.08510109,2448.0,2447.7,0.12761227]
[1747666199801,4.08510109,2448.0,2447.5,12.08571793]
[1747666200302,4.08516769,2447.9,2447.6,0.12761662]
[1747666200506,12.4954327,2447.8,2447.6,0.12761662]
[1747666200726,8.41,2447.8,2447.5,4.0857826]
[1747666200908,8.41,2447.8,2447.4,8.0]
[1747666201240,8.41,2447.8,2447.5,0.12762403]
[1747666201426,4.08434331,2448.4,2447.6,0.8278]
[1747666201427,0.7628,2448.4,2447.6,0.8278]
[1747666201603,16.837,2448.3,2447.9,4.08511996]
[1747666201804,8.41,2448.2,2447.9,4.08511996]
[1747666202024,8.428,2448.3,2447.9,4.08511996]
[1747666202237,8.407,2448.2,2447.9,4.08511996]
[1747666202426,8.407,2448.2,2447.9,4.0850922]
[1747666202608,8.407,2448.2,2447.9,4.08497979]
[1747666202808,8.407,2448.2,2448.0,4.08488215]
[1747666203009,16.829,2448.3,2447.6,0.8278]
[1747666203232,0.04106815,2448.2,2447.3,13.31395728]
[1747666203436,4.08523053,2447.9,2447.4,4.08588245]
[1747666203651,4.0857941,2447.6,2447.5,0.12761992]
[1747666203838,4.0855448,2447.7,2447.5,0.12761992]
[1747666204147,16.833,2447.8,2447.7,4.08546799]
[1747666204363,16.833,2447.8,2447.3,4.63613574]
[1747666204648,16.833,2447.8,2447.5,4.08564995]
[1747666204951,16.833,2447.8,2447.5,4.08580183]
[1747666205115,16.833,2447.8,2447.6,4.08558528]
[1747666205717,16.833,2447.8,2447.4,0.47626637]
[1747666205941,4.08558108,2447.7,2447.2,4.08620583]
[1747666206252,4.08567576,2447.6,2447.3,0.1276335]
[1747666206415,20.91834809,2447.8,2447.3,0.1276335]
[1747666206416,0.7642,2447.7,2447.3,4.08613555]
[1747666206816,4.84968318,2447.7,2447.3,4.08613555]
[1747666207041,0.7642,2447.7,2447.3,4.08613555]
[1747666207839,0.7642,2447.7,2447.5,4.08572459]
[1747666207840,8.399,2447.7,2447.5,4.08572459]
[1747666208026,8.399,2447.7,2447.6,4.0856349]
[1747666208632,8.399,2447.7,2447.5,4.08570399]
[1747666209163,8.399,2447.7,2447.6,4.0856349]
[1747666209364,8.399,2447.7,2447.4,4.08585203]
[1747666209661,8.399,2447.7,2447.3,4.08605729]
[1747666209859,4.08571722,2447.6,2447.2,4.08629115]
[1747666210157,4.08571722,2447.6,2447.0,5.0130362]
[1747666210158,0.8161,2447.5,2447.1,4.08638647]
[1747666210341,0.8161,2447.5,2447.1,12.53779706]
[1747666210657,0.8161,2447.5,2447.0,4.21308855]
[1747666210865,0.8161,2447.5,2447.1,4.08632066]
[1747666211049,0.8161,2447.5,2447.2,4.08616731]
[1747666211361,8.399,2447.7,2447.5,4.08579772]
[1747666211562,8.399,2447.7,2447.5,4.08563949]
[1747666211762,8.399,2447.7,2447.6,4.0856349]
[1747666211974,8.399,2447.7,2447.6,4.90276234]
[1747666212383,8.399,2447.7,2447.2,4.88277043]
[1747666212609,8.399,2447.7,2447.0,0.67652795]
[1747666212610,4.0680814,2447.6,2447.1,12.08638606]
[1747666212752,4.08606735,2447.4,2447.0,0.12652795]
[1747666213073,4.88478328,2447.5,2447.1,0.12764697]
[1747666213289,8.399,2447.7,2447.1,0.12764697]
[1747666213489,12.48453889,2447.7,2447.2,4.08614106]
[1747666213695,12.48453889,2447.7,2447.1,4.60129453]
[1747666213839,12.48453889,2447.7,2447.2,4.08614905]
[1747666214044,12.48453889,2447.7,2447.1,4.60129453]
[1747666214045,4.08623748,2447.3,2446.9,0.89332795]
[1747666214244,4.08663669,2447.0,2446.9,0.12652795]
[1747666214549,13.30110484,2447.0,2446.9,0.12652795]
[1747666214883,21.47307522,2447.0,2446.9,0.12652795]
[1747666215548,0.8098,2446.2,2445.4,4.0909438]
[1747666215748,4.08855826,2445.9,2445.5,0.46908455]
[1747666215981,20.88528118,2446.1,2445.5,0.46908455]
[1747666215982,16.797,2446.1,2445.5,0.46908455]
[1747666216299,4.08847459,2445.9,2445.5,0.34135457]
[1747666216473,16.797,2446.1,2445.5,0.34135457]
[1747666216677,20.88526919,2446.1,2445.5,4.43040784]
[1747666216878,4.08830919,2446.0,2445.5,5.28253532]
[1747666217247,20.88517517,2446.1,2445.6,4.08892716]
[1747666217449,16.797,2446.1,2445.8,4.08862929]
[1747666217653,30.15249647,2446.5,2446.0,4.08824834]
[1747666217881,30.15249647,2446.5,2445.5,1.96678205]
[1747666217882,8.0,2446.4,2445.5,1.96678205]
[1747666218091,0.04106815,2446.3,2445.6,0.12771748]
[1747666218351,4.0881403,2446.1,2445.6,0.12771748]
[1747666218570,4.08880892,2445.7,2445.2,5.07829615]
[1747666219399,16.834,2446.0,2445.2,0.82]
[1747666219547,8.0,2445.9,2444.9,0.8284]
[1747666219750,4.08925325,2445.5,2445.0,4.08997127]
[1747666219974,12.5292292,2445.5,2445.0,4.08996883]
[1747666220173,4.08932663,2445.4,2444.9,4.91846416]
[1747666220365,8.44,2445.5,2445.0,4.08996717]
[1747666220571,8.44,2445.5,2445.1,4.08981227]
[1747666220879,8.44,2445.5,2444.9,0.8284]
[1747666221176,4.08938584,2445.4,2444.9,4.91854003]
[1747666221415,4.08860825,2445.9,2445.4,4.08931054]
[1747666221546,8.431,2445.8,2445.2,1.3412]
[1747666221887,8.449,2446.2,2445.8,4.0885631]
[1747666222050,8.449,2446.2,2445.2,0.7912]
[1747666222250,4.08842043,2446.0,2445.5,4.08913929]
[1747666222483,8.449,2446.2,2445.8,4.08861234]
[1747666222693,12.53698066,2446.2,2445.7,4.08870914]
[1747666223181,12.53698066,2446.2,2445.3,4.08947599]
[1747666223182,8.449,2446.2,2445.4,8.55]
[1747666223484,0.8251,2446.9,2445.9,0.55]
[1747666223658,8.483,2446.9,2446.8,4.08697073]
[1747666223859,8.483,2446.9,2446.7,4.0870183]
[1747666224188,8.483,2446.9,2446.8,4.08697073]
[1747666224760,8.483,2447.4,2446.8,0.7678]
[1747666224963,8.483,2447.4,2446.9,0.87678]
[1747666225156,8.483,2447.4,2447.0,4.08654464]
[1747666225352,8.483,2447.4,2447.2,4.086185]
[1747666225580,8.483,2447.4,2447.3,4.08613574]
[1747666225901,9.2423,2447.8,2447.0,0.55]
[1747666226079,8.481,2447.8,2447.0,0.55]